fUST/lending_fUST_20260610
["ID","MTS","AMOUNT","RATE_DAILY","PERIOD"]
[424724126,1781089844000,-500.0,0.00019178,2]
[424724128,1781089844000,-447.10083359,0.00019178,2]
[424724061,1781089844000,-500.0,0.00019178,2]
[424724114,1781089844000,-500.0,0.00019178,2]
[424724094,1781089844000,-500.0,0.00019178,2]
[424724100,1781089844000,-1505.27,0.00019178,2]
[424724096,1781089844000,-500.0,0.00019178,2]
[424724067,1781089844000,-1240.76,0.00019178,2]
[424724065,1781089844000,-500.0,0.00019178,2]
[424724069,1781089844000,-500.0,0.00019178,2]
[424724073,1781089844000,-500.0,0.00019178,2]
[424724071,1781089844000,-500.0,0.00019178,2]
[424724084,1781089844000,-545.33,0.00019178,2]
[424724098,1781089844000,-500.0,0.00019178,2]
[424724086,1781089844000,-500.0,0.00019178,2]
[424724075,1781089844000,-500.0,0.00019178,2]
[424724079,1781089844000,-500.0,0.00019178,2]
[424724082,1781089844000,-300.0,0.00019178,2]
[424724080,1781089844000,-500.0,0.00019178,2]
[424724088,1781089844000,-500.0,0.00019178,2]
[424724090,1781089844000,-500.0,0.00019178,2]
[424724092,1781089844000,-500.0,0.00019178,2]
[424724077,1781089844000,-517.5048721,0.00019178,2]
[424724391,1781089846000,-955.66,0.00019178,2]
[424724387,1781089846000,-2232.41916641,0.00019178,2]
[424724389,1781089846000,-500.0,0.00019178,2]
[424724393,1781089846000,-840.33,0.00019178,2]
[424724401,1781089846000,-1228.27,0.00019178,2]
[424724406,1781089846000,-500.0,0.00019178,2]
[424724399,1781089846000,-502.33852077,0.00019178,2]
[424724405,1781089846000,-2072.26,0.00019178,2]
[424724395,1781089846000,-598.57,0.00019178,2]
[424724397,1781089846000,-595.92,0.00019178,2]
[424724403,1781089846000,-1258.83,0.00019178,2]
[424724456,1781089847000,-6106.1683169,0.000192,2]
[424724454,1781089847000,-10511.8,0.00019178,2]
[424724466,1781089847000,-500.0,0.00019452,2]
[424724460,1781089847000,-805.5078,0.00019315,2]
[424724468,1781089847000,-200.46402802,0.00019452,2]
[424724471,1781089847000,-500.0,0.00019452,2]
[424724478,1781089847000,-500.0,0.00019452,2]
[424724479,1781089847000,-500.0,0.00019452,2]
[424724473,1781089847000,-500.0,0.00019452,2]
[424724474,1781089847000,-500.0,0.00019452,2]
[424724476,1781089847000,-500.0,0.00019452,2]
[424724470,1781089847000,-500.0,0.00019452,2]
[424724475,1781089847000,-500.0,0.00019452,2]
[424724477,1781089847000,-500.0,0.00019452,2]
[424724481,1781089847000,-1240.76,0.00019452,2]
[424724493,1781089847000,-500.0,0.00019452,2]
[424724492,1781089847000,-500.0,0.00019452,2]
[424724491,1781089847000,-500.0,0.00019452,2]
[424724486,1781089847000,-500.0,0.00019452,2]
[424724458,1781089847000,-1625.52762988,0.00019241,2]
[424724487,1781089847000,-500.0,0.00019452,2]
[424724482,1781089847000,-500.0,0.00019452,2]
[424724472,1781089847000,-550.7956354,0.00019452,2]
[424724452,1781089847000,-500.0,0.00019178,2]
[424724412,1781089847000,-500.0,0.00019178,2]
[424724464,1781089847000,-500.0,0.00019452,2]
[424724483,1781089847000,-500.0,0.00019452,2]
[424724408,1781089847000,-500.0,0.00019178,2]
[424724414,1781089847000,-1239.6046972,0.00019178,2]
[424724410,1781089847000,-1779.39,0.00019178,2]
[424724416,1781089847000,-897.1353028,0.00019178,2]
[424724426,1781089847000,-500.0,0.00019178,2]
[424724424,1781089847000,-500.0,0.00019178,2]
[424724422,1781089847000,-3224.76,0.00019178,2]
[424724418,1781089847000,-671.51,0.00019178,2]
[424724420,1781089847000,-500.0,0.00019178,2]
[424724450,1781089847000,-500.0,0.00019178,2]
[424724436,1781089847000,-1395.51,0.00019178,2]
[424724428,1781089847000,-613.98,0.00019178,2]
[424724430,1781089847000,-572.14,0.00019178,2]
[424724438,1781089847000,-500.0,0.00019178,2]
[424724434,1781089847000,-500.0,0.00019178,2]
[424724440,1781089847000,-500.0,0.00019178,2]
[424724442,1781089847000,-1007.28,0.00019178,2]
[424724444,1781089847000,-702.49,0.00019178,2]
[424724446,1781089847000,-500.0,0.00019178,2]
[424724448,1781089847000,-500.0,0.00019178,2]
[424724462,1781089847000,-6106.1683169,0.000194,2]
[424724432,1781089847000,-578.83,0.00019178,2]
[424724484,1781089847000,-500.0,0.00019452,2]
[424724560,1781089847000,-500.0,0.00019452,2]
[424724480,1781089847000,-500.0,0.00019452,2]
[424724522,1781089847000,-840.33,0.00019452,2]
[424724539,1781089847000,-2136.74,0.00019452,2]
[424724525,1781089847000,-595.92,0.00019452,2]
[424724541,1781089847000,-671.51,0.00019452,2]
[424724544,1781089847000,-3224.76,0.00019452,2]
[424724542,1781089847000,-500.0,0.00019452,2]
[424724546,1781089847000,-500.0,0.00019452,2]
[424724548,1781089847000,-500.0,0.00019452,2]
[424724563,1781089847000,-702.49,0.00019452,2]
[424724549,1781089847000,-613.98,0.00019452,2]
[424724537,1781089847000,-500.0,0.00019452,2]
[424724551,1781089847000,-572.14,0.00019452,2]
[424724558,1781089847000,-500.0,0.00019452,2]
[424724561,1781089847000,-1007.28,0.00019452,2]
[424724576,1781089847000,-4955.81515089,0.000195,2]
[424724553,1781089847000,-578.83,0.00019452,2]
[424724565,1781089847000,-500.0,0.00019452,2]
[424724566,1781089847000,-500.0,0.00019452,2]
[424724568,1781089847000,-500.0,0.00019452,2]
[424724570,1781089847000,-331.45673262,0.00019452,2]
[424724574,1781089847000,-10511.8,0.00019452,2]
[424724490,1781089847000,-500.0,0.00019452,2]
[424724555,1781089847000,-500.0,0.00019452,2]
[424724527,1781089847000,-1228.27,0.00019452,2]
[424724556,1781089847000,-1395.51,0.00019452,2]
[424724532,1781089847000,-500.0,0.00019452,2]
[424724485,1781089847000,-500.0,0.00019452,2]
[424724489,1781089847000,-500.0,0.00019452,2]
[424724494,1781089847000,-1505.27,0.00019452,2]
[424724495,1781089847000,-742.14,0.00019452,2]
[424724496,1781089847000,-500.0,0.00019452,2]
[424724498,1781089847000,-500.0,0.00019452,2]
[424724500,1781089847000,-500.0,0.00019452,2]
[424724501,1781089847000,-651.04,0.00019452,2]
[424724488,1781089847000,-545.33,0.00019452,2]
[424724514,1781089847000,-450.2676141,0.00019452,2]
[424724505,1781089847000,-1237.11,0.00019452,2]
[424724503,1781089847000,-500.0,0.00019452,2]
[424724511,1781089847000,-500.0,0.00019452,2]
[424724507,1781089847000,-500.0,0.00019452,2]
[424724512,1781089847000,-500.0,0.00019452,2]
[424724516,1781089847000,-2679.52,0.00019452,2]
[424724518,1781089847000,-500.0,0.00019452,2]
[424724530,1781089847000,-2072.26,0.00019452,2]
[424724529,1781089847000,-1258.83,0.00019452,2]
[424724535,1781089847000,-1779.39,0.00019452,2]
[424724534,1781089847000,-500.0,0.00019452,2]
[424724520,1781089847000,-955.66,0.00019452,2]
[424724509,1781089847000,-625.07,0.00019452,2]
[424724524,1781089847000,-598.57,0.00019452,2]
[424725484,1781090273000,-5000.0,0.00015675,2]
[424725483,1781090273000,-5000.0,0.00015518,2]
[424725485,1781090276000,-183.96409846,0.00015833,2]
[424725486,1781090326000,-543.85304808,0.00016318,2]
[424725487,1781090326000,-151.0,0.00016483,2]
[424725488,1781090326000,-300.0,0.00016643,2]
[424725502,1781090327000,-300.0,0.00016643,2]
[424725489,1781090327000,-300.0,0.00016643,2]
[424725491,1781090327000,-300.0,0.00016643,2]
[424725492,1781090327000,-300.0,0.00016643,2]
[424725495,1781090327000,-300.0,0.00016643,2]
[424725494,1781090327000,-300.0,0.00016643,2]
[424725493,1781090327000,-300.0,0.00016643,2]
[424725490,1781090327000,-300.0,0.00016643,2]
[424725497,1781090327000,-300.0,0.00016643,2]
[424725500,1781090327000,-300.0,0.00016643,2]
[424725498,1781090327000,-300.0,0.00016643,2]
[424725499,1781090327000,-300.0,0.00016643,2]
[424725501,1781090327000,-300.0,0.00016643,2]
[424725503,1781090327000,-182.235,0.00016679,2]
[424725496,1781090327000,-300.0,0.00016643,2]
[424725505,1781090328000,186.58,9.2e-05,2]
[424725504,1781090328000,186.58,9.2e-05,2]
[424725511,1781090350000,-204.55565,0.00027,120]
[424725512,1781090350000,-200.0,0.00027,120]
[424725510,1781090350000,-200.0,0.00027,120]
[424725513,1781090350000,-206.24,0.00027397,120]
[424725507,1781090350000,-625.81255585,0.00025,120]
[424725508,1781090350000,-1000.0,0.00026555,30]
[424725506,1781090350000,-153.0,0.000246,120]
[424725509,1781090350000,-244.0,0.00026555,30]
[424725514,1781090350000,-496.42394317,0.00028,120]
[424725522,1781090350000,-153.0,0.000294,120]
[424725516,1781090350000,-152.0,0.000282,120]
[424725517,1781090350000,-1207.0,0.000284,120]
[424725518,1781090350000,-153.0,0.000292,120]
[424725519,1781090350000,-1000.0,0.0002921,30]
[424725520,1781090350000,-492.0,0.0002921,30]
[424725521,1781090350000,-200.0,0.000294,120]
[424725523,1781090350000,-181.23871551,0.0003,120]
[424725524,1781090350000,-292.81516881,0.0003,120]
[424725515,1781090350000,-200.0,0.000282,120]
[424725541,1781090351000,-317.10017408,0.000309,120]
[424725540,1781090351000,-292.81516881,0.000309,120]
[424725539,1781090351000,-200.0,0.000306,120]
[424725537,1781090351000,-1000.0,0.00030137,30]
[424725536,1781090351000,-190.0,0.0003,120]
[424725534,1781090351000,-175.14150153,0.0003,120]
[424725535,1781090351000,-2000.0,0.0003,120]
[424725531,1781090351000,-176.94311126,0.0003,120]
[424725532,1781090351000,-273.95837443,0.0003,120]
[424725530,1781090351000,-206.23658026,0.0003,120]
[424725543,1781090351000,-206.23658026,0.000309,120]
[424725529,1781090351000,-161.37633593,0.0003,120]
[424725527,1781090351000,-161.06111172,0.0003,120]
[424725528,1781090351000,-162.04921828,0.0003,120]
[424725526,1781090351000,-212.51697957,0.0003,120]
[424725525,1781090351000,-317.10017408,0.0003,120]
[424725533,1781090351000,-209.39387152,0.0003,120]
[424725544,1781090351000,-176.94311126,0.000309,120]
[424725538,1781090351000,-804.38,0.00030137,30]
[424725545,1781090351000,-175.14150153,0.000309,120]
[424725542,1781090351000,-212.51697957,0.000309,120]
[424725561,1781090351000,-206.23658026,0.000328,120]
[424725562,1781090351000,-1042.75034292,0.00032876,120]
[424725558,1781090351000,-791.0,0.00032131,30]
[424725560,1781090351000,-317.10017408,0.000328,120]
[424725559,1781090351000,-292.81516881,0.000328,120]
[424725557,1781090351000,-1000.0,0.00032131,30]
[424725556,1781090351000,-417.15472785,0.00032,120]
[424725555,1781090351000,-2000.0,0.00032,120]
[424725563,1781090351000,-893.55232757,0.00032876,120]
[424725553,1781090351000,-1000.0,0.00032,120]
[424725551,1781090351000,-175.14150153,0.000318,120]
[424725552,1781090351000,-200.0,0.000318,120]
[424725550,1781090351000,-206.23658026,0.000318,120]
[424725548,1781090351000,-317.10017408,0.000318,120]
[424725549,1781090351000,-212.51697957,0.000318,120]
[424725546,1781090351000,-1000.0,0.00031507,40]
[424725547,1781090351000,-292.81516881,0.000318,120]
[424725554,1781090351000,-328.45631762,0.00032,60]
[424725564,1781090358000,238.1628317,0.0003,120]
[424725566,1781090359000,238.1628317,0.000318,120]
[424725565,1781090359000,238.1628317,0.000309,120]
[424725567,1781090360000,238.1628317,0.000328,120]
[424725580,1781090404000,-578.0,0.0003,120]
[424725576,1781090404000,-578.0,0.0003,120]
[424725578,1781090404000,-578.0,0.0003,120]
[424725577,1781090404000,-578.0,0.0003,120]
[424725575,1781090404000,-578.0,0.0003,120]
[424725574,1781090404000,-578.0,0.0003,120]
[424725569,1781090404000,-244.0,0.0002655,30]
[424725571,1781090404000,-492.0,0.00029205,30]
[424725572,1781090404000,-290.05955937,0.0003,120]
[424725570,1781090404000,-1000.0,0.00029205,30]
[424725568,1781090404000,-1000.0,0.0002655,30]
[424725581,1781090404000,-578.0,0.0003,120]
[424725573,1781090404000,-218.26732311,0.0003,120]
[424725579,1781090404000,-291.81516881,0.0003,120]
[424725586,1781090404000,-1000.0,0.00032877,120]
[424725585,1781090404000,-791.0,0.00032126,30]
[424725582,1781090404000,-218.26732311,0.000309,120]
[424725597,1781090404000,-417.15472785,0.00034,30]
[424725596,1781090404000,-1000.0,0.00034,120]
[424725593,1781090404000,-238.1628317,0.000338,120]
[424725592,1781090404000,-153.0,0.000338,120]
[424725591,1781090404000,-12051.7426044,0.000332,117]
[424725594,1781090404000,-12051.7426044,0.00033939,120]
[424725588,1781090404000,-232.22917,0.00033,120]
[424725587,1781090404000,-412.52,0.00032877,120]
[424725589,1781090404000,-12051.74260444,0.000332,117]
[424725595,1781090404000,-35249.13483555,0.0003395,30]
[424725583,1781090404000,-2000.0,0.00032,120]
[424725584,1781090404000,-1000.0,0.00032126,30]
[424725590,1781090404000,-12051.7426044,0.000332,117]
[424725608,1781090405000,-151.0,0.00034999,30]
[424725615,1781090405000,-500.0,0.00034999,30]
[424725613,1781090405000,-151.0,0.00034999,30]
[424725612,1781090405000,-154.50690286,0.00034999,30]
[424725610,1781090405000,-500.0,0.00034999,30]
[424725611,1781090405000,-156.587,0.00034999,30]
[424725609,1781090405000,-151.0,0.00034999,30]
[424725606,1781090405000,-1500.0,0.00034999,30]
[424725598,1781090405000,-417.15472785,0.00034,120]
[424725605,1781090405000,-3965.36749131,0.00034999,30]
[424725603,1781090405000,-151.0,0.00034999,30]
[424725604,1781090405000,-151.0,0.00034999,30]
[424725602,1781090405000,-151.0,0.00034999,30]
[424725601,1781090405000,-2000.0,0.000349,120]
[424725599,1781090405000,-1000.0,0.00034247,120]
[424725616,1781090405000,-518.5,0.00034999,30]
[424725600,1781090405000,-1751.01446146,0.00034657,120]
[424725607,1781090405000,-151.0,0.00034999,30]
[424725617,1781090405000,-249.84475503,0.00034999,30]
[424725614,1781090405000,-1555.5,0.00034999,30]
[424725620,1781090405000,-162.380719,0.00034999,30]
[424725638,1781090405000,-154.50690286,0.00034999,30]
[424725619,1781090405000,-1000.0,0.00034999,30]
[424725635,1781090405000,-151.0,0.00034999,30]
[424725637,1781090405000,-1000.0,0.00034999,30]
[424725634,1781090405000,-1672.7364795,0.00034999,30]
[424725633,1781090405000,-500.0,0.00034999,30]
[424725631,1781090405000,-151.0,0.00034999,30]
[424725632,1781090405000,-201.01195111,0.00034999,30]
[424725630,1781090405000,-151.0,0.00034999,30]
[424725629,1781090405000,-154.50690286,0.00034999,30]
[424725636,1781090405000,-174.61919141,0.00034999,30]
[424725627,1781090405000,-1000.0,0.00034999,30]
[424725626,1781090405000,-537.6845,0.00034999,30]
[424725625,1781090405000,-500.0,0.00034999,30]
[424725623,1781090405000,-1613.0535,0.00034999,30]
[424725624,1781090405000,-151.0,0.00034999,30]
[424725622,1781090405000,-154.50690286,0.00034999,30]
[424725621,1781090405000,-151.0,0.00034999,30]
[424725618,1781090405000,-279.10078538,0.00034999,30]
[424725628,1781090405000,-168.3888056,0.00034999,30]
[424725650,1781090406000,-162.380719,0.00034999,30]
[424725651,1781090406000,-154.50690286,0.00034999,30]
[424725656,1781090406000,-154.50690286,0.00034999,30]
[424725653,1781090406000,-500.0,0.00034999,30]
[424725654,1781090406000,-1224.42750317,0.00034999,30]
[424725648,1781090406000,-1798.80895522,0.00034999,30]
[424725652,1781090406000,-557.5788265,0.00034999,30]
[424725649,1781090406000,-227.05593544,0.00034999,30]
[424725644,1781090406000,-156.587,0.00034999,30]
[424725647,1781090406000,-500.0,0.00034999,30]
[424725645,1781090406000,-1000.0,0.00034999,30]
[424725643,1781090406000,-181.08010149,0.00034999,30]
[424725642,1781090406000,-1734.62772924,0.00034999,30]
[424725641,1781090406000,-500.0,0.00034999,30]
[424725640,1781090406000,-152.34772812,0.00034999,30]
[424725639,1781090406000,-151.07600706,0.00034999,30]
[424725646,1781090406000,-154.50690286,0.00034999,30]
[424725655,1781090406000,-168.3888056,0.00034999,30]
[424725660,1781090406000,-599.60298507,0.00034999,30]
[424725659,1781090406000,-174.61919141,0.00034999,30]
[424725676,1781090406000,-639.95,0.00035616,120]
[424725674,1781090406000,-1000.0,0.00035339,30]
[424725672,1781090406000,-220.31921581,0.00035,120]
[424725673,1781090406000,-1000.0,0.00035339,30]
[424725671,1781090406000,-417.15472785,0.00035,30]
[424725670,1781090406000,-301.00959142,0.00035,60]
[424725669,1781090406000,-19424.16596069,0.00035,30]
[424725668,1781090406000,-8003.0,0.00035,30]
[424725675,1781090406000,-2000.0,0.000354,120]
[424725667,1781090406000,-1000.0,0.00035,120]
[424725666,1781090406000,-300.0,0.00035,30]
[424725658,1781090406000,-500.0,0.00034999,30]
[424725661,1781090406000,-181.08010149,0.00034999,30]
[424725657,1781090406000,-578.20924308,0.00034999,30]
[424725662,1781090406000,-621.78829552,0.00034999,30]
[424725663,1781090406000,-187.78006525,0.00034999,30]
[424725665,1781090406000,-504.37164643,0.00035,120]
[424725664,1781090406000,-269.44382833,0.00035,120]
[424725677,1781090407000,578.0,0.0003,120]
[424725678,1781090407000,578.0,0.0003,120]
[424725680,1781090407000,446.0,0.00034378,30]
[424725681,1781090407000,446.0,0.00033232,30]
[424725679,1781090407000,578.974,0.0003,120]
[424725682,1781090448000,219.80760744,0.00020344,120]
[424725683,1781090462000,320.5224151,0.00020344,120]
[424725684,1781090463000,152.0,0.00020346,30]
[424725685,1781090464000,152.0,0.00020346,30]
[424725686,1781090465000,307.06925777,0.00020344,120]
[424725688,1781090484000,218.49507132,0.00020344,120]
[424725687,1781090484000,416.32144924,0.00020344,120]
[424725689,1781090499000,152.0,0.00020344,120]
[424725690,1781090500000,152.0,0.00021344,120]
[424725691,1781090502000,152.0,0.00022344,120]
[424725692,1781090503000,152.0,0.00023344,120]
[424725694,1781090524000,320.5224151,0.00020344,120]
[424725695,1781090527000,307.06925777,0.00020344,120]
[424725696,1781090532000,163.0,0.0002,120]
[424725697,1781090541000,152.0,0.00020344,120]
[424725698,1781090542000,152.0,0.00021344,120]
[424725699,1781090543000,152.0,0.00022344,120]
[424725700,1781090545000,152.0,0.00023344,120]
[424725701,1781090546000,416.32144924,0.00020344,120]
[424725702,1781090549000,212.04,9.2e-05,2]
[424725703,1781090550000,152.0,0.00020172,30]
[424725705,1781090551000,152.0,0.00021172,30]
[424725704,1781090551000,200.0,0.00023492,120]
[424725706,1781090553000,152.0,0.00022172,30]
[424725707,1781090554000,152.0,0.00023172,30]
[424725708,1781090585000,320.5224151,0.00020346,120]
[424725709,1781090589000,307.06925777,0.00020346,120]
[424725710,1781090595000,175.0,0.00020346,120]
[424725711,1781090596000,175.0,0.00021346,120]
[424725712,1781090597000,175.0,0.00022346,120]
[424725713,1781090599000,175.0,0.00023346,120]
[424725714,1781090647000,320.5224151,0.00020346,120]
[424725715,1781090651000,157.0,0.00020346,120]
[424725716,1781090652000,157.0,0.00021346,120]
[424725717,1781090654000,157.58663729,0.00022346,120]
[424725718,1781090750000,175.0,0.00020346,120]
[424725719,1781090752000,175.0,0.00021346,120]
[424725720,1781090753000,175.44649652,0.00022346,120]
[424725722,1781090761000,-6052.7114979,0.00016404,2]
[424725721,1781090761000,-3837.2885021,0.00016396,2]
[424725723,1781090777000,-2055.0,0.00016404,2]
[424725725,1781090934000,-153.42214266,0.00015942,2]
[424725724,1781090934000,-230.58761869,0.00015764,2]
[424725726,1781090934000,-220.66629385,0.00015942,2]
[424725727,1781090934000,-461.17523739,0.00016222,2]
[424725729,1781090934000,-153.42214265,0.00016435,2]
[424725731,1781090934000,-691.76285608,0.00016527,2]
[424725730,1781090934000,-178.69,0.00016438,2]
[424725728,1781090934000,-990.1843802,0.00016404,2]
[424725755,1781091031000,-208.70219867,0.00017581,2]
[424725754,1781091031000,-152.0,0.00017083,7]
[424725749,1781091031000,-152.0,0.00017073,7]
[424725752,1781091031000,-152.0,0.00017078,7]
[424725750,1781091031000,-152.0,0.00017078,7]
[424725747,1781091031000,-152.0,0.00017073,7]
[424725867,1781091041000,-519.4887017,0.00017676,2]
[424725870,1781091041000,-149.0626113,0.00017676,2]
[424725865,1781091041000,-347.463185,0.00017581,2]
[424725921,1781091042000,-500.0,0.00017676,2]
[424725937,1781091042000,-500.0,0.00017676,2]
[424725933,1781091042000,-651.79232516,0.00017676,2]
[424725935,1781091042000,-500.0,0.00017676,2]
[424725932,1781091042000,-500.0,0.00017676,2]
[424725926,1781091042000,-500.0,0.00017676,2]
[424725924,1781091042000,-500.0,0.00017676,2]
[424725930,1781091042000,-500.0,0.00017676,2]
[424725923,1781091042000,-500.0,0.00017676,2]
[424725928,1781091042000,-500.0,0.00017676,2]
[424725908,1781091042000,-500.0,0.00017676,2]
[424725917,1781091042000,-500.0,0.00017676,2]
[424725911,1781091042000,-500.0,0.00017676,2]
[424725910,1781091042000,-473.58755439,0.00017676,2]
[424725915,1781091042000,-500.0,0.00017676,2]
[424725946,1781091042000,-500.0,0.00017676,2]
[424725905,1781091042000,-500.0,0.00017676,2]
[424725913,1781091042000,-500.0,0.00017676,2]
[424725903,1781091042000,-532.72182746,0.00017676,2]
[424725901,1781091042000,-153.31128488,0.00017676,2]
[424725919,1781091042000,-500.0,0.00017676,2]
[424725941,1781091042000,-500.0,0.00017676,2]
[424725907,1781091042000,-500.0,0.00017676,2]
[424725943,1781091042000,-500.0,0.00017676,2]
[424725978,1781091042000,-646.61409373,0.00017677,2]
[424725981,1781091042000,-192.78454523,0.0001768,2]
[424725976,1781091042000,-1446.19367806,0.00017677,2]
[424725975,1781091042000,-1446.19367806,0.00017677,2]
[424725939,1781091042000,-500.0,0.00017676,2]
[424725972,1781091042000,-1446.19367806,0.00017677,2]
[424725973,1781091042000,-1446.19367806,0.00017677,2]
[424725970,1781091042000,-1446.19367806,0.00017677,2]
[424725968,1781091042000,-1446.19367806,0.00017677,2]
[424725980,1781091042000,-182.235,0.00017679,2]
[424725964,1781091042000,-1446.19367806,0.00017677,2]
[424725959,1781091042000,-1446.19367806,0.00017677,2]
[424725966,1781091042000,-1446.19367806,0.00017677,2]
[424725957,1781091042000,-1446.19367806,0.00017677,2]
[424725955,1781091042000,-583.12110107,0.00017676,2]
[424725954,1781091042000,-500.0,0.00017676,2]
[424725948,1781091042000,-500.0,0.00017676,2]
[424725952,1781091042000,-500.0,0.00017676,2]
[424725950,1781091042000,-500.0,0.00017676,2]
[424725944,1781091042000,-543.98870259,0.00017676,2]
[424725962,1781091042000,-1446.19367806,0.00017677,2]
[424725986,1781091042000,-1823.33702384,0.0001768,2]
[424726085,1781091043000,-382.39483912,0.0001768,2]
[424726083,1781091043000,-22920.87812968,0.0001768,2]
[424726156,1781091044000,-3168.11947505,0.000188,2]
[424726159,1781091044000,-235.22731082,0.000188,2]
[424726154,1781091044000,-160.0,0.00018791,2]
[424726162,1781091044000,-152.0,0.00018975,2]
[424726166,1781091044000,-3168.11947505,0.00019,2]
[424726168,1781091044000,-235.22731082,0.00019,2]
[424726164,1781091044000,-152.0,0.00018975,2]
[424726170,1781091044000,-159.2185124,0.0001907,2]
[424726174,1781091044000,-3625.0,0.00019164,2]
[424726178,1781091044000,-444.0,0.00019164,2]
[424726193,1781091044000,-482.21581661,0.00019178,2]
[424726180,1781091044000,-186.0,0.00019164,2]
[424726176,1781091044000,-2208.0,0.00019164,2]
[424726191,1781091044000,-279.71604246,0.00019178,2]
[424726182,1781091044000,-159.2185124,0.0001917,2]
[424726185,1781091044000,-500.0,0.00019178,2]
[424726189,1781091044000,-500.0,0.00019178,2]
[424726184,1781091044000,-500.0,0.00019178,2]
[424726188,1781091044000,-500.0,0.00019178,2]
[424726172,1781091044000,-500.0,0.00019164,2]
[424726160,1781091044000,-159.2185124,0.0001897,2]
[424726130,1781091044000,-300.0,0.00018133,2]
[424726151,1781091044000,-300.0,0.00018133,2]
[424726195,1781091044000,-500.0,0.00019178,2]
[424726095,1781091044000,-374.07219647,0.0001768,2]
[424726125,1781091044000,-300.0,0.00018133,2]
[424726123,1781091044000,-600.0,0.00018033,2]
[424726117,1781091044000,-27816.868281,0.0001768,2]
[424726119,1781091044000,-171.87830844,0.00017681,2]
[424726121,1781091044000,-1659.77963134,0.00018,2]
[424726126,1781091044000,-300.0,0.00018133,2]
[424726128,1781091044000,-300.0,0.00018133,2]
[424726132,1781091044000,-300.0,0.00018133,2]
[424726139,1781091044000,-300.0,0.00018133,2]
[424726135,1781091044000,-300.0,0.00018133,2]
[424726147,1781091044000,-300.0,0.00018133,2]
[424726143,1781091044000,-300.0,0.00018133,2]
[424726137,1781091044000,-300.0,0.00018133,2]
[424726141,1781091044000,-300.0,0.00018133,2]
[424726133,1781091044000,-300.0,0.00018133,2]
[424726145,1781091044000,-300.0,0.00018133,2]
[424726149,1781091044000,-300.0,0.00018133,2]
[424726153,1781091044000,-417.15472785,0.00018791,2]
[424726197,1781091044000,-500.0,0.00019178,2]
[424726093,1781091044000,-2029.02431475,0.0001768,2]
[424726201,1781091044000,-502.14293492,0.00019178,2]
[424726256,1781091044000,-500.0,0.00019178,2]
[424726250,1781091044000,-500.82979078,0.00019178,2]
[424726258,1781091044000,-500.0,0.00019178,2]
[424726244,1781091044000,-501.546988,0.00019178,2]
[424726254,1781091044000,-305.74806012,0.00019178,2]
[424726259,1781091044000,-500.0,0.00019178,2]
[424726261,1781091044000,-67.24105683,0.00019178,2]
[424726263,1781091044000,-1127.05894317,0.00019178,2]
[424726265,1781091044000,-500.0,0.00019178,2]
[424726274,1781091044000,-500.0,0.00019178,2]
[424726267,1781091044000,-422.94724924,0.00019178,2]
[424726278,1781091044000,-500.0,0.00019178,2]
[424726272,1781091044000,-500.0,0.00019178,2]